bitfinex/quotes_SOLUSD_20251204
["timestamp","ask_amount","ask_price","bid_price","bid_amount"]
[1764866746271,11.86667697,142.67,142.64,0.72]
[1764866746472,11.86667697,142.67,142.63,17.028864]
[1764866746642,24.53084151,142.68,142.63,16.308864]
[1764866746848,11.86667697,142.67,142.64,0.72]
[1764866747046,11.86667697,142.67,142.63,16.308864]
[1764866747242,11.86667697,142.66,142.63,17.028864]
[1764866747447,11.86667697,142.67,142.63,16.308864]
[1764866747668,11.86667697,142.67,142.64,0.72]
[1764866747848,7.00967334,142.66,142.64,0.72]
[1764866748158,18.87607059,142.67,142.64,0.72]
[1764866748365,18.87549424,142.68,142.64,12.58667697]
[1764866748559,11.86667697,142.66,142.62,0.72]
[1764866748759,19.64667697,142.66,142.62,12.58667697]
[1764866748964,7.78,142.66,142.62,12.58667697]
[1764866749272,7.78,142.66,142.63,0.72]
[1764866749660,14.78988578,142.66,142.63,0.72]
[1764866750177,7.00988578,142.66,142.63,0.72]
[1764866751190,7.00988578,142.66,142.63,12.58667697]
[1764866751679,7.00988578,142.66,142.64,0.72]
[1764866752066,18.8759597,142.67,142.64,0.72]
[1764866752578,26.65540713,142.68,142.64,0.72]
[1764866752751,26.65540713,142.68,142.64,12.58667697]
[1764866753154,26.65540713,142.68,142.65,0.72]
[1764866753971,11.86667697,142.67,142.64,0.72]
[1764866754480,11.86667697,142.67,142.65,0.72]
[1764866754656,11.86667697,142.67,142.61,31.10080903]
[1764866754856,11.86667697,142.67,142.64,0.72]
[1764866755379,11.86667697,142.66,142.62,12.58667697]
[1764866755550,11.86667697,142.66,142.61,24.088864]
[1764866755551,7.01065619,142.64,142.61,16.308864]
[1764866755755,18.87733316,142.64,142.61,17.028864]
[1764866756383,24.94729668,142.64,142.58,7.78]
[1764866756562,4.47584349,142.63,142.59,0.72]
[1764866757375,29.01314017,142.64,142.59,5.19584349]
[1764866757578,7.01065619,142.64,142.6,4.47584349]
[1764866757776,7.01065619,142.64,142.6,5.19584349]
[1764866758081,4.47584349,142.62,142.58,17.028864]
[1764866758463,4.47584349,142.62,142.59,0.72]
[1764866758665,24.53729668,142.64,142.59,5.19584349]
[1764866758877,29.01314017,142.64,142.59,5.19584349]
[1764866759082,4.47584349,142.63,142.59,0.72]
[1764866759274,4.47584349,142.63,142.6,0.72]
[1764866759580,29.01314017,142.64,142.6,0.72]
[1764866759965,4.47584349,142.63,142.6,0.72]
[1764866760487,4.47584349,142.62,142.58,16.308864]
[1764866760662,4.47584349,142.63,142.59,5.19584349]
[1764866760861,11.48615088,142.65,142.6,4.47584349]
[1764866761081,4.47584349,142.64,142.6,0.72]
[1764866761272,4.47584349,142.64,142.61,0.72]
[1764866761585,7.01030739,142.65,142.61,5.19584349]
[1764866761784,11.48615088,142.65,142.61,5.19584349]
[1764866761984,11.48615088,142.65,142.62,0.72]
[1764866762179,11.48573178,142.66,142.62,5.19584349]
[1764866762391,7.00988829,142.66,142.62,5.19584349]
[1764866762583,7.00988829,142.66,142.63,0.72]
[1764866763868,7.00988829,142.66,142.63,5.19584349]
[1764866764082,7.00988829,142.66,142.64,0.72]
[1764866764475,7.00934553,142.67,142.64,3.58261916]
[1764866764978,7.00934553,142.67,142.65,0.72]
[1764866765688,7.00791501,142.7,142.66,2.86261916]
[1764866765866,9.87003262,142.71,142.67,3.58261916]
[1764866766068,7.00741346,142.71,142.68,3.58261916]
[1764866766582,7.00741346,142.71,142.69,0.72]
[1764866766977,7.00741346,142.71,142.52,77.52095911]
[1764866766978,2.86261916,142.7,142.66,17.028864]
[1764866767181,2.86261916,142.7,142.67,16.308864]
[1764866767379,7.00741346,142.71,142.67,17.028864]
[1764866767592,9.87003262,142.71,142.67,16.308864]
[1764866767798,9.87003262,142.71,142.67,0.72]
[1764866768792,27.3880762,142.71,142.67,0.72]
[1764866768988,24.52545704,142.71,142.67,19.89148316]
[1764866769190,7.00741346,142.71,142.68,2.86261916]
[1764866769493,7.00741346,142.71,142.69,0.72]
[1764866769871,7.00741346,142.71,142.68,0.72]
[1764866770490,2.86261916,142.69,142.62,5.86647504]
[1764866770694,2.86261916,142.69,142.63,0.72]
[1764866770695,2.86261916,142.67,142.63,0.72]
[1764866770895,7.00943474,142.67,142.63,3.58261916]
[1764866771497,7.00943474,142.67,142.64,0.72]
[1764866771992,9.87147889,142.68,142.64,3.58261916]
[1764866772293,7.00885973,142.68,142.65,2.86261916]
[1764866772601,28.16355654,142.69,142.66,0.72]
[1764866772602,14.78824833,142.69,142.66,0.72]
[1764866772795,7.00824833,142.69,142.66,0.72]
[1764866773296,9.87086749,142.69,142.66,0.72]
[1764866773500,7.00824833,142.69,142.66,3.58261916]
[1764866773999,7.00824833,142.69,142.66,0.72]
[1764866774315,7.00824833,142.69,142.67,0.65]
[1764866775384,9.87086749,142.69,142.65,0.65]
[1764866778604,9.87086749,142.69,142.64,16.308864]
[1764866778791,7.78,142.68,142.64,0.65]
[1764866778991,27.80136647,142.69,142.65,0.65]
[1764866779315,14.78824833,142.69,142.66,2.86261916]
[1764866779825,20.38123902,142.71,142.65,16.958864]
[1764866779826,7.00790338,142.7,142.67,3.51261916]
[1764866780117,7.00688341,142.72,142.67,0.65]
[1764866780283,7.00688341,142.72,142.68,3.51261916]
[1764866780484,7.00688341,142.72,142.69,0.65]
[1764866780704,7.00688341,142.72,142.69,3.51261916]
[1764866780889,7.00688341,142.72,142.7,0.65]
[1764866781686,7.00629564,142.73,142.71,2.86261916]
[1764866781982,7.0059002,142.74,142.71,2.86261916]
[1764866782186,7.0059002,142.74,142.72,0.65]
[1764866782808,24.51881847,142.75,142.72,0.65]
[1764866783502,32.17832836,142.75,142.72,0.65]
[1764866784000,32.17832836,142.75,142.7,7.65950989]
[1764866784207,7.65950989,142.74,142.71,0.65]
[1764866784502,24.51881847,142.75,142.71,0.65]
[1764866784710,32.17832836,142.75,142.71,0.65]
[1764866785084,32.17832836,142.75,142.71,8.30950989]
[1764866785606,24.51881847,142.75,142.72,0.65]
[1764866786186,7.00525394,142.75,142.72,8.30950989]
[1764866786505,14.78495959,142.76,142.73,7.65950989]
[1764866786705,14.78495959,142.76,142.73,8.30950989]
[1764866787305,0.41,142.78,142.74,8.30950989]
[1764866787306,7.00378204,142.78,142.74,8.30950989]
[1764866787612,14.78378204,142.78,142.75,7.65950989]
[1764866787989,32.29323714,142.78,142.74,8.30950989]
[1764866789293,39.95274703,142.78,142.74,8.30950989]
[1764866790008,32.29323714,142.78,142.74,7.65950989]
[1764866790194,32.29323714,142.78,142.75,7.65950989]
[1764866790910,32.29323714,142.78,142.74,7.65950989]
[1764866791415,39.95274703,142.78,142.74,7.65950989]
[1764866791600,39.95274703,142.78,142.74,8.30950989]
[1764866792009,40.36274703,142.78,142.74,8.30950989]
[1764866794603,40.36274703,142.78,142.74,0.65]
[1764866794803,0.41,142.77,142.73,7.65950989]
[1764866795000,8.06950989,142.77,142.73,8.30950989]
[1764866795906,7.00476323,142.76,142.73,8.30950989]
[1764866796619,7.00476323,142.76,142.74,7.65950989]
[1764866797117,24.51546118,142.77,142.74,8.30950989]
[1764866797505,24.92546118,142.77,142.73,7.65950989]
[1764866797819,24.51546118,142.77,142.73,7.65950989]
[1764866797999,24.51546118,142.77,142.73,8.30950989]
[1764866798908,24.51546118,142.77,142.74,8.30950989]
[1764866800224,7.0040097,142.78,142.75,7.65950989]
[1764866800397,0.2,142.79,142.77,7.65950989]
[1764866800715,0.2,142.79,142.78,7.65950989]
[1764866801714,7.20332737,142.79,142.78,7.65950989]
[1764866801913,0.2,142.79,142.78,8.30950989]
[1764866802421,0.2,142.79,142.78,3.50648344]
[1764866802803,0.2,142.79,142.78,12.31642836]
[1764866805021,0.2,142.79,142.78,19.3202104]
[1764866805200,0.2,142.79,142.78,12.31642836]
[1764866805619,0.2,142.79,142.78,19.3202104]
[1764866807331,0.2,142.79,142.78,92.34614416]
[1764866807495,0.2,142.8,142.78,92.34614416]
[1764866807701,0.2,142.8,142.79,14.9924172]
[1764866809224,0.2,142.8,142.79,30.80565366]
[1764866809422,0.2,142.8,142.79,31.50598281]
[1764866809729,0.2,142.83,142.82,25.11880892]
[1764866809921,0.2,142.83,142.82,35.75529236]
[1764866810118,0.2,142.83,142.82,36.46529236]
[1764866810307,0.2,142.84,142.82,36.46529236]
[1764866810514,0.2,142.89,142.84,8.80994492]
[1764866810719,0.2,142.89,142.88,2.85648344]
[1764866811426,7.89839037,142.89,142.88,2.85648344]
[1764866811923,7.19839037,142.89,142.88,2.85648344]
[1764866813326,7.89839037,142.89,142.88,2.85648344]
[1764866813713,7.19839037,142.89,142.88,2.85648344]
[1764866814218,7.89839037,142.89,142.85,24.798864]
[1764866814433,0.7,142.88,142.83,16.58994492]
[1764866814736,0.7,142.88,142.85,2.85648344]
[1764866814908,0.7,142.88,142.83,7.78]
[1764866815229,0.7,142.88,142.84,2.85648344]
[1764866815401,7.69889989,142.88,142.85,2.85648344]
[1764866815802,0.7,142.87,142.85,2.85648344]
[1764866816418,7.69971245,142.87,142.84,2.85648344]
[1764866816798,0.7,142.86,142.85,2.85648344]
[1764866817200,0.7,142.86,142.83,7.78]
[1764866817201,0.7,142.86,142.84,2.85648344]
[1764866818119,0.7,142.86,142.83,11.66642836]
[1764866818805,0.7,142.86,142.84,2.85648344]
[1764866820226,0.2,142.89,142.85,0.71]
[1764866820428,0.2,142.89,142.88,2.85648344]
[1764866820613,0.2,142.89,142.87,2.85648344]
[1764866820822,0.9,142.89,142.86,11.66642836]
[1764866821121,0.2,142.89,142.88,11.66642836]
[1764866821311,0.2,142.89,142.88,19.44642836]
[1764866821513,0.2,142.89,142.88,20.15642836]
[1764866822026,0.2,142.89,142.85,11.34648344]
[1764866822227,0.2,142.89,142.86,0.71]
[1764866822434,0.2,142.89,142.88,2.85648344]
[1764866823128,0.2,142.89,142.88,27.15530853]
[1764866823342,0.2,142.91,142.88,32.98608061]
[1764866823526,0.2,142.91,142.89,3.56648344]
[1764866823904,0.2,142.91,142.89,2.85648344]
[1764866824414,0.2,142.91,142.9,8.34818017]
[1764866825433,49.33828543,142.91,142.83,0.71]
[1764866825732,7.63818017,142.88,142.84,7.63818017]
[1764866825937,8.33818017,142.88,142.84,7.63818017]
[1764866826116,0.7,142.88,142.84,8.34818017]
[1764866826522,0.7,142.88,142.84,12.54179435]
[1764866826733,6.99860127,142.89,142.85,11.83179435]
[1764866827036,7.69860127,142.89,142.85,12.54179435]
[1764866827336,7.69860127,142.89,142.85,0.71]
[1764866828337,6.99805575,142.9,142.85,7.71023307]
[1764866828521,7.69805575,142.9,142.85,7.71023307]
[1764866829120,7.19751614,142.91,142.87,11.83179435]
[1764866829512,7.19751614,142.91,142.87,12.54179435]
[1764866829730,7.89751614,142.91,142.87,12.54179435]
[1764866830216,7.19751614,142.91,142.87,12.54179435]
[1764866830613,7.89751614,142.91,142.87,12.54179435]
[1764866831008,11.83179435,142.89,142.85,16.308864]
[1764866831213,11.83179435,142.89,142.85,24.088864]
[1764866831439,11.83179435,142.89,142.81,17.50521794]
[1764866831440,12.53179435,142.88,142.82,8.80994492]
[1764866831736,12.53179435,142.88,142.83,11.83179435]
[1764866832135,7.69971362,142.87,142.83,11.83179435]
[1764866832344,7.69971362,142.87,142.82,39.90059521]
[1764866832525,0.7,142.86,142.82,51.73238956]
[1764866833139,0.7,142.86,142.82,52.45238956]
[1764866833719,7.69988018,142.86,142.82,52.45238956]
[1764866834511,6.99988018,142.86,142.83,0.72]
[1764866835858,19.53167453,142.86,142.82,16.308864]
[1764866836135,19.53167453,142.86,142.8,11.83179435]
[1764866836136,12.53179435,142.85,142.8,7.78]
[1764866836352,11.83179435,142.84,142.79,20.33179435]
[1764866836657,24.49953018,142.86,142.8,0.72]
[1764866836954,44.81132453,142.86,142.8,12.55179435]
[1764866837111,11.83179435,142.84,142.78,35.14437303]
[1764866837313,11.83179435,142.84,142.78,28.86065835]
[1764866837542,0.7,142.83,142.78,28.86065835]
[1764866837740,7.00182047,142.82,142.78,28.86065835]
[1764866837951,7.00182047,142.82,142.79,0.72]
[1764866838119,7.00150454,142.83,142.79,12.55179435]
[1764866838516,7.00150454,142.83,142.8,0.72]
[1764866839250,25.97978577,142.86,142.81,11.83179435]
[1764866839451,11.83179435,142.85,142.8,27.33452502]
[1764866839631,11.83179435,142.85,142.81,0.72]
[1764866839832,12.53179435,142.85,142.81,0.72]
[1764866840031,19.53214436,142.85,142.81,0.72]
[1764866840240,12.53179435,142.84,142.8,7.78]
[1764866840429,12.53179435,142.83,142.78,35.92065835]
[1764866840636,11.83179435,142.82,142.78,17.028864]
[1764866840836,12.53179435,142.82,142.78,17.028864]
[1764866841250,18.8339071,142.82,142.79,0.72]
[1764866841624,7.00211275,142.82,142.79,0.72]
[1764866841948,18.8339071,142.82,142.79,0.72]
[1764866842357,11.83179435,142.8,142.77,44.0988474]
[1764866842659,19.5339071,142.82,142.78,0.72]
[1764866842822,7.00211275,142.82,142.79,11.83179435]
[1764866843026,7.00211275,142.82,142.78,19.5554677]
[1764866843244,7.00211275,142.82,142.79,0.72]
[1764866845619,14.78143434,142.83,142.79,19.55507444]
[1764866845726,7.00143434,142.83,142.8,0.72]
[1764866845926,7.00093414,142.84,142.8,12.55179435]
[1764866846129,7.00093414,142.84,142.81,0.72]
[1764866846329,7.00044679,142.85,142.81,12.55179435]
[1764866846839,7.00044679,142.85,142.82,0.72]
[1764866847441,7.00001856,142.86,142.82,19.55342735]
[1764866847644,7.00001856,142.86,142.83,11.83179435]
[1764866847845,7.00001856,142.86,142.83,0.72]
[1764866848148,18.83181291,142.86,142.81,8.5]
[1764866848339,19.51181291,142.86,142.82,0.72]
[1764866849358,7.00001856,142.86,142.82,19.55360189]
[1764866849745,7.68001856,142.86,142.82,18.83360189]
[1764866850059,7.00001856,142.86,142.83,0.72]
[1764866850258,24.49833498,142.87,142.83,0.72]
[1764866850432,6.99937005,142.87,142.83,19.55306665]
[1764866850963,6.99937005,142.87,142.84,0.72]
[1764866851142,19.51083735,142.88,142.84,0.72]
[1764866852030,7.679043,142.88,142.84,0.72]
[1764866852930,19.51083735,142.88,142.84,0.72]
[1764866853136,6.99790062,142.9,142.85,7.78]
[1764866853448,6.99790062,142.9,142.86,11.83179435]
[1764866853648,7.67790062,142.9,142.86,0.72]
[1764866853850,7.67790062,142.9,142.87,0.72]
[1764866854243,0.2,142.91,142.87,0.72]
[1764866854564,0.2,142.91,142.9,8.80994492]
[1764866854865,0.2,142.91,142.9,7.78]
[1764866855065,19.7092053,142.91,142.87,22.16548713]
[1764866855362,19.7092053,142.91,142.87,16.308864]
[1764866856265,7.87741095,142.91,142.87,16.308864]
[1764866856471,7.87741095,142.91,142.87,28.86065835]
[1764866856763,19.7092053,142.91,142.87,17.028864]
[1764866856952,12.51179435,142.9,142.87,16.308864]
[1764866857163,18.83008354,142.9,142.87,17.028864]
[1764866857867,6.99828919,142.9,142.87,17.028864]
[1764866858076,18.83008354,142.9,142.87,17.028864]
[1764866858573,19.51008354,142.9,142.87,16.308864]
[1764866858763,11.83179435,142.88,142.86,7.76]
[1764866858968,0.68,142.89,142.84,8.48]
[1764866859278,7.67888017,142.88,142.84,8.48]
[1764866859570,19.51067452,142.88,142.84,8.48]
[1764866860242,19.51067452,142.88,142.82,42.8072264]
[1764866860243,6.99888017,142.88,142.82,42.8072264]
[1764866860457,19.51067452,142.88,142.84,0.72]
[1764866860641,11.83179435,142.87,142.83,8.48]
[1764866860837,37.00787496,142.88,142.83,19.59179435]
[1764866861058,37.00787496,142.88,142.84,0.72]
[1764866861667,11.83179435,142.86,142.82,30.97543205]
[1764866861980,11.83179435,142.83,142.79,5.85662313]
[1764866862190,11.83179435,142.8,142.77,51.1388474]
[1764866862470,11.83179435,142.81,142.77,51.1388474]
[1764866862638,11.83179435,142.8,142.77,51.1388474]
[1764866862962,11.83179435,142.81,142.77,51.1388474]
[1764866863145,12.52179435,142.81,142.77,51.8288474]
[1764866863346,11.83179435,142.8,142.77,51.8288474]
[1764866864379,7.00230198,142.82,142.78,0.69]
[1764866864690,11.83179435,142.85,142.8,11.83179435]
[1764866864857,11.83179435,142.85,142.81,0.69]
[1764866865052,7.00035001,142.85,142.81,12.52179435]
[1764866865253,7.00035001,142.85,142.81,20.28179435]
[1764866865561,7.00035001,142.85,142.82,0.68]
[1764866866078,18.83214436,142.85,142.82,0.68]
[1764866866464,18.83214436,142.85,142.81,7.76]
[1764866866665,19.51214436,142.85,142.81,8.44]
[1764866866863,11.83179435,142.84,142.81,8.44]
[1764866867063,7.68035001,142.85,142.81,8.44]
[1764866867282,19.51214436,142.85,142.81,8.44]
[1764866868384,12.51179435,142.84,142.8,19.61179435]
[1764866868564,12.51179435,142.84,142.8,20.29179435]
[1764866868887,12.51179435,142.84,142.8,8.46]
[1764866869372,19.5129213,142.84,142.8,8.46]
[1764866870083,18.8329213,142.84,142.8,8.46]
[1764866870477,18.8329213,142.84,142.81,0.68]
[1764866871081,7.00112695,142.84,142.81,0.68]
[1764866871385,7.68112695,142.84,142.8,19.61179435]
[1764866871559,7.00112695,142.84,142.81,0.68]
[1764866873857,7.68112695,142.84,142.8,19.61179435]
[1764866874062,7.00112695,142.84,142.81,0.68]
[1764866874590,7.68112695,142.84,142.8,20.29179435]
[1764866874795,7.00112695,142.84,142.81,12.51179435]
[1764866875165,7.68112695,142.84,142.8,7.78]
[1764866875373,7.00112695,142.84,142.81,0.68]
[1764866875881,7.00112695,142.84,142.81,12.51179435]
[1764866877492,7.00035001,142.85,142.81,12.51179435]
[1764866877686,19.51214436,142.85,142.81,12.51179435]
[1764866878189,7.00035001,142.85,142.82,0.68]
[1764866878691,19.51214436,142.85,142.8,27.2944035]
[1764866878877,19.51214436,142.85,142.81,0.68]
[1764866880164,19.51214436,142.85,142.81,7.68224495]
[1764866880698,11.83179435,142.83,142.79,5.85662313]
[1764866880898,11.83179435,142.81,142.77,49.91547053]
[1764866881200,11.83179435,142.79,142.77,43.3788474]
[1764866881375,11.83179435,142.8,142.77,43.3788474]
[1764866881693,7.78,142.84,142.75,7.78]
[1764866881694,11.83179435,142.79,142.75,7.78]
[1764866881903,11.83179435,142.79,142.75,8.46]
[1764866882072,7.00378204,142.78,142.75,8.46]
[1764866883993,7.00378204,142.78,142.75,15.46518762]
[1764866884197,7.00378204,142.78,142.76,0.68]
[1764866884498,7.00378204,142.78,142.75,14.78518762]
[1764866884699,19.51557639,142.78,142.75,7.78]
[1764866884880,0.68,142.77,142.73,36.60065835]
[1764866885199,37.02503149,142.78,142.74,0.68]
[1764866885875,7.00312713,142.8,142.75,11.83179435]
[1764866886078,19.51492148,142.8,142.75,11.83179435]
[1764866886269,19.51492148,142.8,142.76,0.68]
[1764866886472,15.33810645,142.8,142.76,0.68]
[1764866888285,7.65497932,142.79,142.76,0.68]
[1764866888481,2.85792911,142.79,142.76,0.68]
[1764866888999,2.85792911,142.79,142.76,7.68468899]
[1764866889194,9.86029704,142.81,142.76,18.3226181]
[1764866889394,9.86029704,142.81,142.77,0.68]
[1764866889771,7.00236793,142.81,142.77,3.53792911]
[1764866889972,7.00236793,142.81,142.78,0.68]
[1764866891399,9.85983229,142.82,142.78,7.68372902]
[1764866893111,16.308864,142.77,142.71,0.7]
[1764866893302,2.85792911,142.74,142.71,0.7]
[1764866893489,2.85792911,142.74,142.71,7.70715584]
[1764866893802,7.78,142.75,142.71,0.7]
[1764866894001,7.78,142.75,142.71,9.50994492]
[1764866894002,2.85792911,142.74,142.71,9.50994492]
[1764866894211,0.69,142.76,142.71,9.50994492]
[1764866894212,10.63792911,142.76,142.71,19.37492269]
[1764866894411,15.43802308,142.76,142.72,0.7]
[1764866894614,7.78,142.76,142.72,8.35802308]
[1764866894903,14.78483994,142.76,142.72,15.36473081]
[1764866895207,7.00435602,142.77,142.73,0.7]
[1764866895411,14.66193668,142.78,142.73,8.35802308]
[1764866895625,14.66193668,142.78,142.74,0.7]
[1764866896080,7.00231076,142.81,142.75,8.80994492]
[1764866896284,7.65802308,142.8,142.75,16.467968]
[1764866896485,7.65802308,142.79,142.76,0.7]
[1764866897285,7.69231076,142.81,142.76,0.7]
[1764866897286,7.00303073,142.8,142.76,0.7]
[1764866897507,14.66105381,142.8,142.76,0.7]
[1764866898008,14.66105381,142.8,142.76,7.70459106]
[1764866898009,7.65802308,142.8,142.76,7.70459106]
[1764866898212,7.00185144,142.82,142.78,7.65802308]
[1764866898601,14.6595039,142.83,142.79,0.7]
[1764866898912,7.0009426,142.84,142.8,7.65802308]
[1764866899107,14.65896568,142.84,142.79,8.35802308]
[1764866899305,7.65802308,142.81,142.77,16.5140196]
[1764866899815,7.65802308,142.81,142.78,0.7]
[1764866900388,24.50304285,142.84,142.78,0.7]
[1764866900389,7.0009426,142.84,142.79,8.80994492]
[1764866900716,7.0009426,142.84,142.8,7.65802308]
[1764866900896,7.0009426,142.84,142.8,8.35802308]
[1764866901101,14.65896568,142.84,142.81,0.7]
[1764866901301,7.0009426,142.84,142.81,0.7]
[1764866901891,14.65896568,142.84,142.81,0.7]
[1764866902711,14.65896568,142.84,142.79,0.7]
[1764866902712,8.34802308,142.83,142.79,0.7]
[1764866904020,8.34802308,142.83,142.79,7.70319397]
[1764866904410,7.65802308,142.83,142.79,7.00319397]
[1764866904598,32.16106593,142.84,142.8,0.7]
[1764866904920,32.85106593,142.84,142.8,0.7]
[1764866905811,14.65896568,142.84,142.8,15.36076754]
[1764866906413,14.65896568,142.84,142.81,0.7]
[1764866906823,0.69,142.84,142.8,14.66076754]
[1764866907127,7.65802308,142.82,142.79,5.85662313]
[1764866907310,7.65802308,142.81,142.77,12.86068586]
[1764866907497,8.34802308,142.81,142.77,12.86068586]
[1764866907897,15.350394,142.81,142.77,20.51870894]
[1764866908822,15.350394,142.81,142.77,14.66208581]
[1764866909121,15.350394,142.81,142.77,7.00406273]
[1764866909331,15.350394,142.81,142.77,14.66208581]
[1764866910001,8.34802308,142.8,142.76,14.66265281]
[1764866910411,8.34802308,142.8,142.76,15.36265281]
[1764866911124,15.35105528,142.8,142.76,15.36265281]
[1764866912918,7.00248707,142.81,142.77,8.35802308]
[1764866913142,14.66051015,142.81,142.77,8.35802308]
[1764866913320,8.34802308,142.8,142.76,14.66265281]
[1764866913504,8.34802308,142.8,142.76,15.36265281]
[1764866913822,8.34802308,142.8,142.76,14.66265281]
[1764866914010,14.66051015,142.81,142.77,0.7]
[1764866915615,15.35051015,142.81,142.77,0.7]
[1764866915918,7.65802308,142.8,142.77,0.7]
[1764866916607,2.85732861,142.8,142.77,0.7]
[1764866917425,9.86028365,142.8,142.77,0.7]
[1764866917823,2.85732861,142.79,142.76,7.00462973]
[1764866918028,10.55028365,142.8,142.76,7.70462973]
[1764866918725,3.54732861,142.79,142.75,7.70502276]
[1764866919221,3.54732861,142.79,142.76,0.7]
[1764866919525,2.85732861,142.79,142.76,0.7]
[1764866919720,3.54732861,142.79,142.76,0.7]
[1764866921315,9.86072341,142.79,142.76,0.7]
[1764866923008,10.52072341,142.79,142.76,0.7]
[1764866923521,10.52033131,142.8,142.76,7.70456476]
[1764866923829,2.85732861,142.79,142.76,7.70456476]
[1764866924927,10.52033131,142.8,142.76,7.70456476]
[1764866925322,10.52033131,142.8,142.76,7.00456476]
[1764866925521,9.86033131,142.8,142.77,0.71]
[1764866925723,7.00250597,142.81,142.77,7.71415578]
[1764866926041,18.29983458,142.81,142.77,7.71415578]
[1764866926933,9.86014209,142.8,142.77,7.71415578]
[1764866927539,9.85976683,142.81,142.78,0.71]
[1764866929330,14.7821655,142.82,142.78,10.57089184]
[1764866929741,17.63949411,142.82,142.79,0.7]
[1764866931312,2.85732861,142.84,142.79,10.56049441]
[1764866931532,2.85732861,142.83,142.79,7.7031658]
[1764866931836,2.85732861,142.83,142.8,0.7]
[1764866932232,3.55732861,142.84,142.8,0.7]
[1764866932422,9.85836952,142.84,142.8,7.70274613]
[1764866932625,7.00104091,142.84,142.8,7.70274613]
[1764866932926,9.85836952,142.84,142.81,0.7]
[1764866933138,7.00104091,142.84,142.81,0.7]
[1764866933346,9.85780481,142.85,142.81,0.7]
[1764866933533,7.0004762,142.85,142.81,3.55732861]
[1764866933915,7.0004762,142.85,142.8,7.00274613]
[1764866933916,9.85780481,142.85,142.82,0.7]
[1764866934138,10.55780481,142.85,142.82,0.7]
[1764866934738,10.55772979,142.85,142.82,7.70152334]
[1764866935113,17.61736772,142.86,142.83,0.7]
[1764866935313,7.76,142.86,142.83,3.55732861]
[1764866935519,7.76,142.86,142.84,0.7]
[1764866936247,9.85692562,142.87,142.84,0.7]
[1764866936943,3.55732861,142.89,142.84,10.55814846]
[1764866937120,9.85588562,142.89,142.85,0.7]
[1764866937326,17.61543849,142.9,142.85,3.55732861]
[1764866937938,17.61543849,142.9,142.86,0.7]
[1764866938135,14.75810988,142.9,142.86,3.55732861]
[1764866938654,14.75810988,142.9,142.87,0.7]
[1764866939351,2.85732861,142.88,142.84,0.7]
[1764866939562,2.85732861,142.88,142.78,8.62836264]
[1764866939563,17.008864,142.89,142.81,5.86033063]
[1764866939723,17.008864,142.89,142.79,7.73468935]
[1764866939724,2.85732861,142.83,142.8,0.7]
[1764866940041,2.85732861,142.87,142.8,0.7]
[1764866940042,2.85732861,142.84,142.8,0.7]
[1764866940244,2.85732861,142.82,142.8,0.7]
[1764866940623,2.85732861,142.81,142.78,0.7]
[1764866940818,2.85732861,142.8,142.78,0.7]
[1764866941450,25.20294035,142.84,142.78,0.7]
[1764866941627,2.85732861,142.81,142.78,0.7]
[1764866942636,2.85732861,142.82,142.78,9.50994492]
[1764866943037,2.85732861,142.82,142.79,0.7]
[1764866943452,2.85732861,142.81,142.79,0.7]
[1764866943952,9.8597387,142.81,142.79,0.7]
[1764866944249,7.00241009,142.81,142.79,0.7]
[1764866946040,9.8597387,142.81,142.79,0.7]
[1764866946239,17.50332563,142.83,142.79,0.7]
[1764866946445,2.85732861,142.81,142.79,0.7]
[1764866947042,2.85732861,142.82,142.79,0.7]
[1764866948457,7.00231076,142.81,142.79,0.7]
[1764866952757,11.46593368,142.81,142.79,0.7]
[1764866954764,11.46593368,142.81,142.76,22.17154914]
[1764866954956,4.46362292,142.77,142.75,5.86268514]
[1764866955158,4.46362292,142.76,142.75,0.7]
[1764866955668,4.46362292,142.77,142.75,0.7]
[1764866956473,11.46806386,142.77,142.75,0.7]
[1764866956837,4.46362292,142.76,142.75,0.7]
[1764866957039,4.46362292,142.76,142.73,8.80994492]
[1764866957360,7.00444094,142.77,142.74,0.7]
[1764866957663,11.46806386,142.77,142.74,0.7]
[1764866959248,0.72,142.76,142.73,8.80994492]
[1764866959455,4.46362292,142.75,142.73,8.80994492]